Cogmind - Beta 16 --- EXPLORER MODE // 2026.01.28 @ 09:58:10 Player: K.K.Y. Result: Smashed by cave-in Performance ------------- Evolutions (0) 0 Regions Visited (3) 600 Robots Destroyed (51) 255 Value Destroyed (1138) 1138 Prototype IDs (12) 240 Alien Tech Used (0) 0 Bonus (-104) -104 TOTAL SCORE: 2129 Bonus ------- Friendly Fire -104 Cogmind --------- Core Integrity 0/250 Matter 300/300 Energy 14/100 System Corruption 0% Temperature Cool (3) Movement Walking (130) Location -10/Subcaves Parts ------- > --- POWER (1) -------- (None) > --- PROPULSION (2) --- Cargo Legs > --- UTILITY (3+1) ---- Large Storage Unit Structural Scanner Improved Terrain Scanner Makeshift Light Armor Plating (+) > --- WEAPON (2) ------- Battle Cannon Makeshift Hammer > --- INVENTORY (15) --- Improved Treads Improved Treads High-capacity Storage Unit Humpback Compact Matter Pod (150) Compact Matter Pod (150) Compact Matter Pod (150) Compact Matter Pod (150) Sensor Array Heavy Battle Rifle Makeshift Shrapnel Gun Subdweller Shrapnel Launcher Mining Laser Multitool Peak State ------------ > --- POWER ------------ Subdweller Power Source > --- PROPULSION ------- Cargo Legs > --- UTILITY ---------- Large Storage Unit Structural Scanner Improved Terrain Scanner Makeshift Light Armor Plating > --- WEAPON ----------- Battle Cannon Makeshift Hammer > --- INVENTORY -------- Improved Treads Improved Treads High-capacity Storage Unit Humpback Compact Matter Pod Compact Matter Pod Compact Matter Pod Compact Matter Pod Sensor Array Heavy Battle Rifle Makeshift Shrapnel Gun Subdweller Shrapnel Launcher Mining Laser Multitool [Rating: 36] Favorites ----------- Power Ion Engine Engine Ion Engine Propulsion Improved Treads Treads Improved Treads Leg Cargo Legs Utility Structural Scanner Device Structural Scanner Storage Large Storage Unit Protection Makeshift Light Armor Plating Weapon Makeshift Hammer Energy Gun EM Pulse Gun Ballistic Cannon Battle Cannon Impact Weapon Makeshift Hammer Build | -11 -10 -10 -10 ------- Run | Yrd Mat Min Sub Slots Evolved 1 | . 1 . . Power . | . . . . Propulsion . | . . . . Utility 1 | . 1 . . Weapon . | . . . . Parts Attached 25 | 6 6 1 12 Power 3 | 1 . . 2 Engine 3 | 1 . . 2 Core . | . . . . Reactor . | . . . . Propulsion 5 | 2 2 . 1 Treads 4 | 2 2 . . Leg 1 | . . . 1 Wheel . | . . . . Hover . | . . . . Flight . | . . . . Utility 8 | 1 4 . 3 Device 4 | . 3 . 1 Storage 2 | 1 1 . . Processor . | . . . . Hackware . | . . . . Protection 2 | . . . 2 Artifact . | . . . . Weapon 9 | 2 . 1 6 Energy Gun 4 | 2 . . 2 Energy Cannon . | . . . . Ballistic Gun . | . . . . Ballistic Cannon 3 | . . . 3 Launcher . | . . . . Special Weapon . | . . . . Impact Weapon 2 | . . 1 1 Slashing Weapon . | . . . . Piercing Weapon . | . . . . Special Melee Weapon . | . . . . Unidentified Prototypes . | . . . . Parts Lost 7 | . . 2 5 Power 2 | . . . 2 Propulsion 2 | . . . 2 Utility 1 | . . . 1 Weapon 2 | . . 2 . Highest Loss Streak 2 | . . 2 2 To Critical Strikes . | . . . . Average Backups 12 | . 6 10 13 Power . | . . . . Propulsion 3 | . 2 4 3 Utility 5 | . 1 4 6 Weapon 2 | . 1 1 3 Tool/Special . | . . . . Unused Backups 16 | . . . 16 Power . | . . . . Propulsion 2 | . . . 2 Utility 6 | . . . 6 Weapon 7 | . . . 7 Tool/Special 1 | . . . 1 Average Slot Usage (%) 86 | . 95 95 83 Engine 7 | . 11 12 6 Treads 10 | . 24 25 4 Leg 5 | . . . 8 Device 22 | . 21 25 22 Storage 11 | . 12 12 11 Protection 6 | . . . 8 Energy Gun 6 | . 24 16 1 Ballistic Cannon 6 | . . . 8 Impact Weapon 9 | . . 4 11 Peak Build Rating 36 | 6 11 12 36 Average Rating 24 | 4 10 11 29 On Entrance 7 | . 6 11 12 Avg Prop Armor Cover (%) . | . . . . Naked Turns . | . . . . Heaviest Build 38 | 19 31 31 38 Greatest Support 55 | 40 46 46 55 Greatest Overweight (x) 10 | . 5 . 10 Average Overweight (x) . | . . . . Largest Inventory Capacity 15 | 10 15 15 15 Average Capacity 14 | 9 10 15 15 Most Carried 15 | 5 10 12 15 Average Carried 12 | . 6 10 14 Final Capacity 15 | 10 15 15 15 Final Carried 15 | 2 8 11 15 Class Distribution -------------------- 100% | Hacker-Mutant Dominant Class ---------------- Hacker-Mutant | -10/Materials Hacker-Mutant | -10/Mines Hacker-Mutant | -10/Subcaves Resources | -11 -10 -10 -10 ----------- Run | Yrd Mat Min Sub Matter Collected 695 | 223 167 70 235 Remotely . | . . . . Salvage Created 1616 | 208 502 238 668 Parts 82 | 15 36 8 23 Haulers Intercepted 2 | . 2 . . Recyclers Shooed . | . . . . Parts Field Recycled . | . . . . Retrieved Matter . | . . . . Parts Self-Destructed . | . . . . Prevented . | . . . . Parts Restored . | . . . . Kills | -11 -10 -10 -10 ------- Run | Yrd Mat Min Sub Combat Hostiles Destroyed 32 | . 10 6 16 Melee 7 | . . 1 6 Guns 12 | . 10 2 . Cannons 3 | . . . 3 Classes Destroyed 12 | 2 6 . 4 Worker 3 | . 2 1 . Builder 2 | . 2 . . Tunneler 6 | 5 . 1 . Hauler 2 | . 2 . . Recycler 2 | 1 1 . . Turret 2 | . . . 2 Watcher 2 | . 2 . . Swarmer 11 | . 8 2 1 Grunt 6 | . 2 4 . Sentry 1 | . . . 1 Artisan 2 | . . . 2 Subdweller 14 | . . . 14 Best Kill Streak 6 | 6 4 2 3 Combat Bots Only 4 | . 4 2 3 Max Kills in Single Turn 2 | 1 2 1 1 Gunslinging 1 | . 1 . . Exploded . | . . . . Melee 1 | . . 1 1 Uniques/NPCs Destroyed . | . . . . Combat | -11 -10 -10 -10 -------- Run | Yrd Mat Min Sub Hostile Shots Fired 168 | . 24 20 124 Missed 59 | . 3 7 49 Hits 109 | . 21 13 75 Projectile 109 | . 21 13 75 AOE 2 | . . . 2 Critical Strikes 3 | . . 2 1 Damage Taken 1009 | . 109 102 798 Core 295 | . 18 . 277 Absorbed by Shields . | . . . . Ignored by Resistances 566 | . 77 64 425 Core Remaining (%) 100 | 100 . . . Volleys Fired 87 | 9 31 8 39 Largest 2 | 2 2 2 1 Hottest 80 | 80 80 80 60 Shots Fired 133 | 18 62 15 38 Gun 107 | 18 62 15 12 Cannon 26 | . . . 26 Launcher . | . . . . Special . | . . . . Kinetic 26 | . . . 26 Thermal 9 | . . . 9 Explosive . | . . . . Electromagnetic 98 | 18 62 15 3 Robot Hit Streak 19 | 16 19 11 15 Robot Miss Streak 2 | . 2 1 1 Penetration Max . | . . . . Secondary Targets 1 | . 1 . . Max Gunslinging Chain 1 | . 1 . . Shots Hit Robots 143 | 16 43 19 65 Core Hits 49 | 7 23 6 13 Critical Kills 1 | . . . 1 Critical Parts Destroyed 8 | . . 2 6 Critical Strikes 13 | 1 1 2 9 Corrupt 2 | 1 1 . . Smash 11 | . . 2 9 Melee Attacks 114 | . . 8 106 Impact 114 | . . 8 106 Slashing . | . . . . Piercing . | . . . . Sneak Attacks 4 | . . 2 2 Combat Hostiles 1 | . . . 1 Follow-up Attacks . | . . . . Damage Inflicted 3408 | 213 666 506 2023 Guns 1116 | 213 577 124 202 Cannons 411 | . . . 411 Explosions 89 | . 89 . . Melee 1792 | . . 382 1410 Ramming . | . . . . Kinetic 411 | . . . 411 Thermal 259 | . 89 . 170 Explosive . | . . . . Electromagnetic 946 | 213 577 124 32 Impact 1792 | . . 382 1410 Slashing . | . . . . Piercing . | . . . . Highest Corruption . | . . . . Average Corruption . | . . . . Corruption Purged . | . . . . Corruption Blocked . | . . . . Overload Shots . | . . . . Overflow Damage 535 | . . 102 433 Projectiles . | . . . . Explosions . | . . . . Melee 535 | . . 102 433 Knockbacks 16 | . . 1 15 Impact 9 | . . 1 8 Kinetic 7 | . . . 7 Secondary . | . . . . Self-Inflicted Damage . | . . . . Shots . | . . . . Rammed . | . . . . Targets Rammed . | . . . . Kicked . | . . . . Crushed . | . . . . Highest Temperature 120 | 72 120 72 22 Average Temperature 30 | 31 29 39 12 Received Heat Transfer 549 | . 48 117 384 Siege Activations . | . . . . Martial Activations . | . . . . Shielding Activations . | . . . . Robots Disrupted . | . . . . Combat Hostiles . | . . . . Robots Corrupted 12 | . . 4 8 Combat Hostiles 10 | . . 3 7 Parts Fried 16 | . 1 5 10 Impact Corruptions 21 | . . 5 16 Robots Melted . | . . . . Combat Hostiles . | . . . . Parts Melted . | . . . . Heat Transferred 350 | . 150 . 200 Parts Sabotaged . | . . . . Parts Stolen . | . . . . Parts Stripped . | . . . . Power Chain Reactions 2 | . 2 . . Alert | -11 -10 -10 -10 ------- Run | Yrd Mat Min Sub Maximum Alert Level . | . . . . Low Security (%) 100 | 100 100 100 . Level 1 . | . . . . Level 2 . | . . . . Level 3 . | . . . . Level 4 . | . . . . Level 5 . | . . . . High Security . | . . . . Max Security . | . . . . Peak Influence 105 | 15 105 70 . Initial . | . . . . Average 11 | 2 16 7 . Influence Increases 866 | 30 382 179 275 Destroy 0b10 Robot/C 400 | . 200 120 80 Destroy 0b10 Robot/NC 85 | 30 45 10 . Destroy Leader 88 | . 58 30 . Successful Hack 63 | . 63 . . Disable Machine 12 | . 8 4 . Destroy Structure 8 | . 8 . . Lose Combat Pursuer 210 | . . 15 195 Influence Decreases 866 | 30 382 179 275 Time Decay 835 | 30 371 179 255 Lost Part 20 | . . . 20 Purge Threat 11 | . 11 . . Squads Dispatched 1 | . 1 . . Investigation 1 | . 1 . . Extermination . | . . . . Reinforcement . | . . . . Assault . | . . . . Garrison . | . . . . Intercept . | . . . . Searches Triggered . | . . . . Construction Impeded . | . . . . Haulers Reinforced . | . . . . Active Scanning Responses . | . . . . Cargo Convoy Interrupts . | . . . . Stealth | -11 -10 -10 -10 --------- Run | Yrd Mat Min Sub Distress Signals . | . . . . Communications Jammed . | . . . . Distress Signals . | . . . . Times Spotted 65 | . 17 7 41 Peak Tracking Total 3 | . 3 2 3 Tactical Retreats 18 | . . 1 17 Traps | -11 -10 -10 -10 ------- Run | Yrd Mat Min Sub Traps Triggered 5 | . 5 . . Indirectly . | . . . . Trap Hack Attempts . | . . . . Triggered . | . . . . Disarmed . | . . . . Reprogrammed . | . . . . Reused . | . . . . Traps Extracted . | . . . . Installed . | . . . . Triggered . | . . . . Machines | -11 -10 -10 -10 ---------- Run | Yrd Mat Min Sub Machines Disabled 6 | . 2 1 3 Max in Single Turn 1 | . 1 1 1 Machines Repaired . | . . . . Machines Dismantled . | . . . . Machines Sabotaged . | . . . . Overloaded Fab Kills . | . . . . Hacking | -11 -10 -10 -10 --------- Run | Yrd Mat Min Sub Machines Accessed 11 | . 9 . 2 Terminals 7 | . 7 . . Fabricators . | . . . . Repair Stations . | . . . . Recycling Units 2 | . 2 . . Scanalyzers . | . . . . Garrison Access . | . . . . Total Hacks 34 | . 28 . 6 Successful 27 | . 21 . 6 Failed 7 | . 7 . . Catastrophic 1 | . 1 . . Database Lockouts . | . . . . Manual 15 | . 15 . . Terminals 25 | . 25 . . Fabricators . | . . . . Repair Stations . | . . . . Recycling Units 3 | . 3 . . Scanalyzers . | . . . . Garrison Access . | . . . . Terminal Hacks 25 | . 19 . 6 Record 5 | . . . 5 Part Schematic 6 | . 6 . . Robot Schematic 3 | . 3 . . Robot Analysis 3 | . 3 . . Unreport Threat 1 | . 1 . . Locate Traps 2 | . 2 . . Dispatch Records 1 | . 1 . . Maintenance Status 1 | . 1 . . Hauler Manifests 1 | . 1 . . Registered Components 1 | . 1 . . Proto ID Catalog 1 | . . . 1 Fabricator Hacks . | . . . . Repair Station Hacks . | . . . . Recycling Unit Hacks 2 | . 2 . . Retrieve Components 2 | . 2 . . Scanalyzer . | . . . . Garrison Access Hacks . | . . . . Unauthorized Hacks . | . . . . Terminals . | . . . . Fabricators . | . . . . Repair Stations . | . . . . Recycling Units . | . . . . Scanalyzers . | . . . . Garrison Access . | . . . . Data Cores Recovered . | . . . . Used . | . . . . Hacking Detections 7 | . 7 . . Full Trace Events 2 | . 2 . . Feedback Events . | . . . . Feedback Blocked . | . . . . Robot Schematics Acquired 3 | . 3 . . Robots Built . | . . . . Authchips . | . . . . Time . | . . . . Total Robot Build Rating . | . . . . Part Schematics Acquired 5 | . 5 . . Parts Built . | . . . . Authchips . | . . . . Time . | . . . . Total Part Build Rating . | . . . . Part Studies Acquired . | . . . . Parts Repaired . | . . . . Time . | . . . . Parts Recycled . | . . . . Recycled Matter . | . . . . Retrieved Matter . | . . . . Retrieved Components 4 | . 4 . . Parts Scanalyzed . | . . . . Part Schematics Acquired . | . . . . Parts Damaged . | . . . . Bothacking | -11 -10 -10 -10 ------------ Run | Yrd Mat Min Sub Used RIF Installer . | . . . . Robots Hacked . | . . . . Non-combat . | . . . . Combat . | . . . . Robot Hacks Applied . | . . . . Relay Couplers Released . | . . . . Fabnet Peak Effective % . | . . . . Robots Rewired . | . . . . Allies Hacked . | . . . . Hacks Repelled . | . . . . Allies | -11 -10 -10 -10 -------- Run | Yrd Mat Min Sub Total Allies . | . . . . Largest Group . | . . . . Highest-Rated Group . | . . . . Highest-Rated Ally . | . . . . Total Orders . | . . . . Ally Attacks . | . . . . Total Damage . | . . . . Kills . | . . . . Allies Corrupted . | . . . . Allies Melted . | . . . . Intel | -11 -10 -10 -10 ------- Run | Yrd Mat Min Sub Active Infowar (turns) 7770 | . 1075 999 5696 Sensors 5278 | . 1074 999 3205 Terrain 2491 | . . . 2491 Structural 7770 | . 1075 999 5696 Robot Analysis Total 3 | . 3 . . Derelict Logs Recovered 3 | . . 1 2 Drone Launches . | . . . . Drone Recoveries . | . . . . Exploration | -11 -10 -10 -10 ------------- Run | Yrd Mat Min Sub Turns Passed 8005 | 95 1215 999 5696 Spaces Moved 3921 | 47 645 565 2664 Core 37 | 18 2 . 17 Treads 1841 | 29 643 565 604 Legs 2043 | . . . 2043 Wheels . | . . . . Hover . | . . . . Flight . | . . . . Fastest Speed 50 | 50 160 160 130 Average Speed 149 | 117 160 160 145 Slowest Speed 550 | 160 300 160 550 Overloaded Moves . | . . . . Propulsion Burnouts . | . . . . Robots Hopped . | . . . . Potential Cave-ins 15 | . . . 15 Cave-ins Triggered 1 | . . . 1 Exploration Rate (%) 74 | 5 97 99 98 Regions Visited 3 Branch Regions 2 Pre-discovered Areas 2 | . . 1 1 Known Exits Taken 3 | 1 1 1 . Unknown Exits Taken . | . . . . Scrap Searched 14 | . . . 14 Spaces Dug 31 | . . . 31 Terrain Destroyed 38 | . 7 . 31 Melee 31 | . . . 31 Projectile . | . . . . AOE 7 | . 7 . . Terrain Rammed . | . . . . Walls Destroyed . | . . . . Machines Disabled . | . . . . Actions | -11 -10 -10 -10 --------- Run | Yrd Mat Min Sub Total 5807 | 68 765 629 4345 Wait 1584 | . 43 44 1497 Move 3917 | 46 644 564 2663 Hop . | . . . . Pick Up 49 | 7 22 4 16 Fast Attach 6 | 1 3 . 2 Attach 25 | 5 14 1 5 Detach 2 | . 2 . . Swap 7 | . 2 . 5 Drop 16 | . 4 . 12 Fire 87 | 9 31 8 39 Melee 114 | . . 8 106 Ram . | . . . . Kick . | . . . . Crush . | . . . . Escape Stasis . | . . . . Rewire . | . . . . Trap . | . . . . Miscellaneous . | . . . . Route ------- -11/Scrapyard -10/Materials (discovered 5 exits: *Mat x3 / *Min x2) -10/Mines (discovered 4 exits: *Mat x2 / Exi / *Sub) -10/Subcaves (discovered 3 exits: *Mat x2 / *Rec) History --------- Turn | Location | Event 6 | -11/Scrapyard | Identified exit to Materials 6 | -11/Scrapyard | Discovered exit to Materials (range 16) 96 | -11/Scrapyard | Entered Materials 96 | -10/Materials | Evolved 1 slot: Utility x1 280 | -10/Materials | Identified exit to Mines 280 | -10/Materials | Discovered exit to Mines (range 15) 315 | -10/Materials | Build established: Hacker-Mutant 660 | -10/Materials | Identified exit to Materials 660 | -10/Materials | Discovered exit to Materials (range 16) 967 | -10/Materials | Discovered exit to Materials (range 6) 1047 | -10/Materials | Discovered exit to Mines (range 15) 1174 | -10/Materials | Discovered exit to Materials (range 9) 1311 | -10/Materials | Entered Mines 1372 | -10/Mines | Found a Scrap Suit stashed away for nefarious purposes 1582 | -10/Mines | Discovered exit to Materials (range 8) 1606 | -10/Mines | Learned location of 1 exit from Materials 1676 | -10/Mines | Discovered exit to Materials (range 11) 1869 | -10/Mines | Deemed a non-threat by the Exiles lab entrance 1869 | -10/Mines | Identified exit to Exiles 1869 | -10/Mines | Discovered exit to Exiles (range 6) 2098 | -10/Mines | Learned location of Storage (-8) 2302 | -10/Mines | Identified exit to Subcaves 2302 | -10/Mines | Discovered exit to Subcaves (range 6) 2310 | -10/Mines | Entered Subcaves 2440 | -10/Subcaves | Ambushed by Subdwellers from Twisted Machinery 2716 | -10/Subcaves | Visited 4L-MR0's lab 2750 | -10/Subcaves | Found Cargo Legs 3002 | -10/Subcaves | Identified exit to Materials 3002 | -10/Subcaves | Discovered exit to Materials (range 13) 3053 | -10/Subcaves | Identified exit to Recycling 3053 | -10/Subcaves | Discovered exit to Recycling (range 14) 3259 | -10/Subcaves | A swath of the cavern ceiling suddenly collapsed 3450 | -10/Subcaves | Learned Materials stockpile data 3455 | -10/Subcaves | Visited Clippyterm 3462 | -10/Subcaves | Learned Factory trap positions 3462 | -10/Subcaves | Learned Factory emergency access door positions 3546 | -10/Subcaves | Disturbed a concealed Subdweller 3562 | -10/Subcaves | Disturbed a concealed Subdweller 3663 | -10/Subcaves | Attached Cargo Legs, gained temporary slots: Utility x2 3790 | -10/Subcaves | Discovered exit to Materials (range 9) 3959 | -10/Subcaves | Shifting Twisted Machinery released Battle Cannon 3984 | -10/Subcaves | Shifting Twisted Machinery released Sub. Machine Gun 4156 | -10/Subcaves | Core integrity fell below 50% 4208 | -10/Subcaves | Learned location of Zion (-7) 5334 | -10/Subcaves | Disturbed a concealed Subdweller 7999 | -10/Subcaves | Ambushed by Subdweller buried in earth 8006 | -10/Subcaves | Crushed by falling debris 8006 | -10/Subcaves | Smashed by cave-in Last Messages --------------- 05342_ Found Sub. Shrapnel Launcher. 05342_ Found 49 Matter. 05456_ The unstable cave ceiling collapses. 05516_ Dropped Lgt. Treads. 05516_ Lgt. Treads crushed and broken. 05517_ Dropped Lgt. Treads. 05517_ Lgt. Treads crushed and broken. 05517_ Acquired Sub. Shrapnel Launcher. 05520_ Acquired Hvy. Battle Rifle. 05522_ Dropped Battle Cannon. 05953_ Acquired 20 matter. 06033_ Subatomizers dissect the Riot Gun. 06479_ Sub. Power Source shoots sparks and powers down. 06479_ Dropped Broken Sub. Power Source. 07728_ Subatomizers dissect the Corrupted Sub. Machine Gun. 08000_ S7-YZM(R): "SLEEPOVER!" 08006_ The unstable cave ceiling collapses. 08006_ Crushed by falling debris. Map ----- +----------------------------------------------------+ | ?????#??#?#???##?### ## ##???#?????????? | | ?????????##??#??### #### ###?#??#?#??????? | | ???????#??#??????## ### ##?????????????? | | ??????????#?##??#### ### ##???????#?????? | | ?????????#???????### ### ##?#?????#?#???? | | ??????????#??###??## # ####??#???#?????? | | ??????????????#??### ###?#????#?#????? | | ???????????#????#?### # ##??#???#????#?? | | ?????????????#??#?#####" ###????????????? | | ??????????????#?#??##### ###??#?#???????? | | ????????????????#????### ###??????##??#??? | | ??????????#????#????#?### ###??????????##?? | | ??????????#???#?????#?### ###???????#?#???? | | ????????????##???#??##### ##?????????????? | | ???????????#??????????## #####???#??????? | | ??????????????????#???## ###????#????#???? | | ??????????????????????### ###?#?##?#?#?#??? | | ???????????###?#???#??## ###?###?????#???? | | ???????????#?????###??### ###???????#?????? | | ???????????#????#????### ##???#?????????? | | ????????????#?#???????### ###?????####????? | | ????????????#?????????### ##????#????????? | | ???????????????#???#??## ##????###?#????? | | ????????????#???????#?### ###?#???##??????? | | ??????????#????#?#????### ###??????#??#???? | | ??????????#???#??????####@####????????????? | | ??????????????????#??### ####???????????? | | ????????????????????### R ;##??#?????????? | | ???????#?#???????#???## ;##?????#??????? | | ?????????????#???#???## ;##????#???????? | | ?????????????????????## ##????????????? | | ?????????????#?#???#?## ;;##?????????#??? | | ???#????????????#??##### ;###????????????? | | ??????################# ####??????#?????? | | ????################# ###?????????????? | | ?#?##### ##### ##?????????????? | | ???### #### ###??????#?????? | | ??### ###### ###????????????? | | ??### ###### ##????????????? | | ??## ###### ###????????????? | | ??## #### #####????????????? | | ??### ### & ####???#?????????? | | ??#### ###& ###?#???????????? | | ???### %&& ##?????????????? | | ????### && ##?????????????? | | ????#### #### % ### ##?????????????? | | ?????################ ###????????????? | | ????#?############ ###????????????? | | ?????????#?????## # ##????????#???? | | ???????????#???### # ###??????#?????? | +----------------------------------------------------+ Best States ------------- Heat Dissipation 25 Energy Generation 15 Energy Capacity 250 Matter Stores 300 Matter Capacity 300 Sight Range 16 Robot Scan Range 14 Terrain Scan Range 16 Terrain Scan Density 10 Armor Coverage 250 Resistance: KI 35 Resistance: TH 35 Resistance: EX 35 Resistance: EM 35 Resistance: I 35 Resistance: S 35 Resistance: P 35 Evasion (%) 55 Recoil Reduction 2 Offensive Hacking 20 Item Schematics ----------------- Huge Storage Unit | -10/Materials | Hacked Cargo Storage Unit | -10/Materials | Hacked Hcp. Storage Unit | -10/Materials | Hacked Sensor Array | -10/Materials | Hacked Structural Scanner | -10/Materials | Hacked Robot Schematics ------------------ W-16 Scout | -10/Materials | Hacked G-34 Mercenary | -10/Materials | Hacked S-10 Pest | -10/Materials | Hacked Fabricated ------------ Nothing Repaired ---------- Nothing Studied --------- None Alien Tech Used ----------------- None Achievements -------------- None Challenges ------------ None Game ------ Seed KineticLayeredLink Manual? 0 Play Time 00:27:33 Cumulative 316.6 hours Start 2026.01.28 @ 09:33:19 End 2026.01.28 @ 09:58:10 Sessions 1 Manual Loads 0 Difficulty Explorer Special Mode None Game No. 498 Rogue 0 Adventurer 0 Explorer 498 Win Type - Total 0 Types 0/0/0/0/0/0/0/0/0/0 Lore% 77 Gallery% 70 Achievement% 56 Wizard Run 0 Options --------- Layout 1 ASCII 0 Keyboard 0 Movement Mouse Keybinds 1 Fullscreen 1 Font 24/Smallcaps Map View 50x35 Zoom Use 0% Tactical HUD 1 Map Filters NONE Filters NONE Steam 1 RUN: 7f47353c-a906-4a43-81e6-a2735f5dd20d